Cogmind - Beta 16 @@@ ROGUE MODE // 2025.12.13 @ 20:38:24 Player: Kat Result: Destroyed by H-61 Shepherd with Heavy Assault Cannon Performance ------------- Evolutions (2) 1000 Regions Visited (3) 600 Robots Destroyed (62) 310 Value Destroyed (1682) 1682 Prototype IDs (3) 60 Alien Tech Used (0) 0 Bonus (0) 0 TOTAL SCORE: 3652 Bonus ------- None Cogmind --------- Core Integrity 0/550 Matter 300/300 Energy 39/100 System Corruption 0% Temperature Cool (0) Movement Core (50) Location -8/Materials Parts ------- > --- POWER (2) -------- (None) > --- PROPULSION (2) --- (None) > --- UTILITY (4) ------ Melee Analysis Suite > --- WEAPON (3) ------- Spear > --- INVENTORY (5) ---- Cooled Airjet Improved Heat Sink Weight Redist. System Melee Analysis Suite Target Analyzer Peak State ------------ > --- POWER ------------ Light Nuclear Core > --- PROPULSION ------- Cooled Airjet Cooled Airjet > --- UTILITY ---------- Small Storage Unit Melee Analysis Suite Hardlight Generator > --- WEAPON ----------- Axe Spear Spear > --- INVENTORY -------- Light Nuclear Core Improved Heat Sink Compact Matter Pod Weight Redist. System Advanced Visual Processing Unit Seismic Detector Melee Analysis Suite Target Analyzer [Rating: 33] Favorites ----------- Power Improved Ion Engine Engine Improved Ion Engine Power Core Light Nuclear Core Propulsion Armored Wheel Leg Aluminum Leg Wheel Armored Wheel Hover Unit Cooled Airjet Utility Signal Interpreter Device Hardlight Generator Storage Small Storage Unit Processor Signal Interpreter Weapon Spear Energy Gun Small Laser Ballistic Gun Assault Rifle Launcher Mini Grenade Launcher Slashing Weapon Axe Piercing Weapon Spear Special Melee Weapon Datajack Build | -11 -10 -9 -8 ------- Run | Yrd Mat Mat Mat Slots Evolved 4 | . . 2 2 Power 1 | . . . 1 Propulsion . | . . . . Utility 2 | . . 1 1 Weapon 1 | . . 1 . Parts Attached 46 | 7 11 8 20 Power 10 | 1 2 2 5 Engine 7 | 1 2 2 2 Core 3 | . . . 3 Reactor . | . . . . Propulsion 13 | 2 3 2 6 Treads . | . . . . Leg 3 | . . . 3 Wheel 8 | 2 3 2 1 Hover 2 | . . . 2 Flight . | . . . . Utility 9 | 2 2 1 4 Device 5 | 2 . . 3 Storage 1 | . . 1 . Processor 3 | . 2 . 1 Hackware . | . . . . Protection . | . . . . Artifact . | . . . . Weapon 14 | 2 4 3 5 Energy Gun 2 | . 1 1 . Energy Cannon . | . . . . Ballistic Gun 4 | 2 1 1 . Ballistic Cannon . | . . . . Launcher 2 | . 1 1 . Special Weapon . | . . . . Impact Weapon . | . . . . Slashing Weapon 1 | . . . 1 Piercing Weapon 4 | . . . 4 Special Melee Weapon 1 | . 1 . . Unidentified Prototypes 1 | . . . 1 Parts Lost 16 | . 4 2 10 Power 3 | . 1 . 2 Propulsion 4 | . 1 . 3 Utility 4 | . 1 . 3 Weapon 5 | . 1 2 2 Highest Loss Streak 9 | . 4 2 9 To Critical Strikes . | . . . . Average Backups 6 | 1 3 5 7 Power . | . . . . Propulsion . | . . . . Utility 4 | . 1 3 6 Weapon . | . 1 . . Tool/Special . | . . . . Unused Backups 10 | . . . 10 Power . | . . . . Propulsion 1 | . . . 1 Utility 9 | . . . 9 Weapon . | . . . . Tool/Special . | . . . . Average Slot Usage (%) 95 | . 95 96 95 Engine 11 | . 13 11 11 Core 2 | . . . 3 Wheel 20 | . 27 20 17 Device 9 | . 15 . 8 Storage 7 | . . 10 9 Processor 16 | . 10 22 17 Energy Gun 3 | . 2 11 2 Ballistic Gun 7 | . 16 14 2 Launcher 4 | . 6 4 3 Slashing Weapon 1 | . . . 1 Piercing Weapon 10 | . . . 16 Peak Build Rating 33 | 7 11 16 33 Average Rating 19 | 3 7 13 26 On Entrance 8 | . 7 11 16 Avg Prop Armor Cover (%) 8 | . . . 8 Naked Turns . | . . . . Heaviest Build 30 | 9 10 22 30 Greatest Support 26 | 26 26 24 25 Greatest Overweight (x) 2 | . . . 2 Average Overweight (x) . | . . . . Largest Inventory Capacity 8 | 5 5 8 8 Average Capacity 7 | 5 5 7 8 Most Carried 8 | 4 5 8 8 Average Carried 6 | 1 3 5 7 Final Capacity 8 | 5 5 8 5 Final Carried 8 | 1 5 8 5 Class Distribution -------------------- 38% | Gladiator 32% | Mutant 28% | Gunner Dominant Class ---------------- Mutant | -10/Materials Gunner | -9/Materials Gladiator | -8/Materials Resources | -11 -10 -9 -8 ----------- Run | Yrd Mat Mat Mat Matter Collected 1432 | 346 281 318 487 Remotely 319 | 143 176 . . Salvage Created 1818 | 231 336 318 933 Parts 118 | 13 33 18 54 Haulers Intercepted 2 | . 1 . 1 Recyclers Shooed . | . . . . Parts Field Recycled . | . . . . Retrieved Matter . | . . . . Parts Self-Destructed . | . . . . Prevented . | . . . . Parts Restored . | . . . . Kills | -11 -10 -9 -8 ------- Run | Yrd Mat Mat Mat Combat Hostiles Destroyed 41 | . 12 7 22 Melee 12 | . . . 12 Guns 14 | . 5 7 2 AOE 15 | . 7 . 8 Classes Destroyed 12 | 3 4 3 2 Worker 5 | 2 . . 3 Builder 4 | . 3 . 1 Tunneler 3 | 3 . . . Hauler 2 | . 1 . 1 Recycler 2 | 1 1 . . Operator 1 | . . . 1 Watcher 4 | . . 1 3 Swarmer 10 | . 6 . 4 Grunt 22 | . 6 4 12 Brawler 1 | . . 1 . Sentry 7 | . . 2 5 Hunter 1 | . . . 1 Best Kill Streak 10 | 3 6 7 10 Combat Bots Only 7 | . 6 7 6 Max Kills in Single Turn 4 | 1 2 2 4 Gunslinging 1 | . . 1 . Exploded 3 | . 1 . 3 Melee 1 | . . . 1 Uniques/NPCs Destroyed . | . . . . Combat | -11 -10 -9 -8 -------- Run | Yrd Mat Mat Mat Hostile Shots Fired 225 | . 56 37 132 Missed 53 | . 15 4 34 Hits 172 | . 41 33 98 Melee 1 | . . 1 . Projectile 171 | . 41 32 98 Critical Strikes 7 | . . 1 6 Damage Taken 2559 | . 388 495 1676 Core 725 | . 74 77 574 Absorbed by Shields 216 | . . . 216 Regen/Repaired (Parts) 67 | . . 67 . Core Remaining (%) 83 | 100 70 80 . Volleys Fired 82 | 11 36 16 19 Largest 3 | 2 2 3 3 Hottest 105 | 40 85 105 93 Shots Fired 154 | 22 51 39 42 Gun 118 | 22 35 38 23 Cannon . | . . . . Launcher 36 | . 16 1 19 Special . | . . . . Kinetic 85 | 22 31 22 10 Thermal 33 | . 4 16 13 Explosive 36 | . 16 1 19 Electromagnetic . | . . . . Robot Hit Streak 10 | 8 9 10 6 Robot Miss Streak 5 | 3 5 3 2 Penetration Max . | . . . . Secondary Targets 5 | . . 5 . Max Gunslinging Chain 2 | . . 2 . Shots Hit Robots 130 | 13 26 30 61 Core Hits 98 | 6 26 13 53 Critical Kills . | . . . . Critical Parts Destroyed . | . . . . Critical Strikes 1 | . . . 1 Impale 1 | . . . 1 Melee Attacks 58 | . 2 . 56 Impact . | . . . . Slashing 6 | . . . 6 Piercing 50 | . . . 50 Sneak Attacks 4 | . 1 . 3 Combat Hostiles 1 | . . . 1 Follow-up Attacks 8 | . . . 8 Damage Inflicted 3966 | 166 1047 387 2366 Guns 866 | 166 185 387 128 Cannons . | . . . . Explosions 1759 | . 862 . 897 Melee 1341 | . . . 1341 Ramming . | . . . . Kinetic 609 | 166 185 197 61 Thermal 257 | . . 190 67 Explosive 1759 | . 862 . 897 Electromagnetic . | . . . . Impact . | . . . . Slashing 103 | . . . 103 Piercing 1238 | . . . 1238 Highest Corruption . | . . . . Average Corruption . | . . . . Corruption Purged . | . . . . Corruption Blocked . | . . . . Overload Shots . | . . . . Overflow Damage 81 | . 5 . 76 Projectiles . | . . . . Explosions 22 | . 5 . 17 Melee 59 | . . . 59 Knockbacks . | . . . . Impact . | . . . . Kinetic . | . . . . Secondary . | . . . . Self-Inflicted Damage 219 | . 18 33 168 Shots 11 | . 3 1 7 Rammed . | . . . . Targets Rammed . | . . . . Kicked . | . . . . Crushed . | . . . . Highest Temperature 444 | . 68 444 119 Average Temperature 100 | . 19 188 41 Received Heat Transfer 623 | . 66 168 389 Effects 4 | . . 4 . Shutdowns 1 | . . 1 . Matter Decay 2 | . . 2 . Damage (minor) 1 | . . 1 . Siege Activations . | . . . . Martial Activations . | . . . . Shielding Activations . | . . . . Robots Disrupted . | . . . . Combat Hostiles . | . . . . Robots Corrupted . | . . . . Combat Hostiles . | . . . . Parts Fried . | . . . . Impact Corruptions . | . . . . Robots Melted . | . . . . Combat Hostiles . | . . . . Parts Melted . | . . . . Heat Transferred 619 | . . 469 150 Parts Sabotaged . | . . . . Parts Stolen . | . . . . Parts Stripped . | . . . . Power Chain Reactions . | . . . . Alert | -11 -10 -9 -8 ------- Run | Yrd Mat Mat Mat Maximum Alert Level 1 | . 1 . 1 Low Security (%) 78 | 100 62 100 77 Level 1 21 | . 37 . 22 Level 2 . | . . . . Level 3 . | . . . . Level 4 . | . . . . Level 5 . | . . . . High Security . | . . . . Max Security . | . . . . Peak Influence 297 | 10 290 193 297 Initial 93 | . 6 93 46 Average 133 | 1 130 129 144 Influence Increases 1489 | 30 445 219 795 Destroy 0b10 Robot/C 820 | . 240 140 440 Destroy 0b10 Robot/NC 105 | 30 25 5 45 Destroy Leader 182 | . 42 32 108 Trap Triggered on 0b10 10 | . 10 . . Successful Hack 19 | . 9 . 10 Disable Machine 150 | . 60 15 75 Destroy Structure 188 | . 59 12 117 Partial Spotted 15 | . . 15 . Influence Decreases 1348 | 20 233 329 766 Entered New Map 199 | . 4 129 66 Time Decay 839 | 20 189 180 450 Lost Part 160 | . 40 20 100 Purge Threat 150 | . . . 150 Squads Dispatched 5 | . 2 . 3 Investigation 3 | . 2 . 1 Extermination . | . . . . Reinforcement 2 | . . . 2 Assault . | . . . . Garrison . | . . . . Intercept . | . . . . Searches Triggered . | . . . . Construction Impeded . | . . . . Haulers Reinforced . | . . . . Active Scanning Responses . | . . . . Cargo Convoy Interrupts . | . . . . Stealth | -11 -10 -9 -8 --------- Run | Yrd Mat Mat Mat Distress Signals 4 | . . . 4 Communications Jammed . | . . . . Distress Signals . | . . . . Times Spotted 56 | . 14 11 31 Peak Tracking Total 6 | . 5 4 6 Tactical Retreats . | . . . . Traps | -11 -10 -9 -8 ------- Run | Yrd Mat Mat Mat Traps Triggered . | . . . . Indirectly . | . . . . Trap Hack Attempts . | . . . . Triggered . | . . . . Disarmed . | . . . . Reprogrammed 1 | . 1 . . Reused 1 | . 1 . . Traps Extracted . | . . . . Installed . | . . . . Triggered 1 | . 1 . . Machines | -11 -10 -9 -8 ---------- Run | Yrd Mat Mat Mat Machines Disabled 10 | . 4 1 5 Max in Single Turn 1 | . 1 1 1 Machines Repaired . | . . . . Machines Dismantled . | . . . . Machines Sabotaged . | . . . . Overloaded Fab Kills . | . . . . Hacking | -11 -10 -9 -8 --------- Run | Yrd Mat Mat Mat Machines Accessed 8 | . 3 2 3 Terminals 5 | . 3 . 2 Fabricators . | . . . . Repair Stations 1 | . . 1 . Recycling Units 1 | . . 1 . Scanalyzers 1 | . . . 1 Garrison Access . | . . . . Total Hacks 29 | . 10 9 10 Successful 18 | . 5 8 5 Failed 11 | . 5 1 5 Catastrophic 2 | . 2 . . Database Lockouts . | . . . . Manual . | . . . . Terminals 17 | . 10 . 7 Fabricators . | . . . . Repair Stations 2 | . . 2 . Recycling Units 7 | . . 7 . Scanalyzers 3 | . . . 3 Garrison Access . | . . . . Terminal Hacks 9 | . 5 . 4 Prototype ID Bank 1 | . . . 1 Alert Level 1 | . . . 1 Unreport Threat 1 | . . . 1 Locate Traps 2 | . 2 . . Reprogram Traps 1 | . 1 . . Transport Status 1 | . 1 . . Investigation Status 1 | . 1 . . Zone Layout 1 | . . . 1 Fabricator Hacks . | . . . . Repair Station Hacks 2 | . . 2 . Scan Component 1 | . . 1 . Repair 1 | . . 1 . Recycling Unit Hacks 6 | . . 6 . Recycle Component 1 | . . 1 . Process 1 | . . 1 . Report Inventory 2 | . . 2 . Retrieve Matter 2 | . . 2 . Scanalyzer 1 | . . . 1 Retrieve Study 1 | . . . 1 Garrison Access Hacks . | . . . . Unauthorized Hacks . | . . . . Terminals . | . . . . Fabricators . | . . . . Repair Stations . | . . . . Recycling Units . | . . . . Scanalyzers . | . . . . Garrison Access . | . . . . Data Cores Recovered . | . . . . Used . | . . . . Hacking Detections 7 | . 3 1 3 Full Trace Events 4 | . 1 . 3 Feedback Events . | . . . . Feedback Blocked . | . . . . Robot Schematics Acquired . | . . . . Robots Built . | . . . . Authchips . | . . . . Time . | . . . . Total Robot Build Rating . | . . . . Part Schematics Acquired . | . . . . Parts Built . | . . . . Authchips . | . . . . Time . | . . . . Total Part Build Rating . | . . . . Part Studies Acquired 1 | . . . 1 Parts Repaired 1 | . . 1 . Time 32 | . . 32 . Parts Recycled 1 | . . 1 . Recycled Matter 1 | . . 1 . Retrieved Matter 1 | . . 1 . Retrieved Components . | . . . . Parts Scanalyzed . | . . . . Part Schematics Acquired . | . . . . Parts Damaged . | . . . . Bothacking | -11 -10 -9 -8 ------------ Run | Yrd Mat Mat Mat Used RIF Installer . | . . . . Robots Hacked 2 | . 2 . . Non-combat 1 | . 1 . . Combat 1 | . 1 . . Robot Hacks Applied 2 | . 2 . . parse_system 2 | . 2 . . Relay Couplers Released . | . . . . Fabnet Peak Effective % . | . . . . Robots Rewired . | . . . . Allies Hacked . | . . . . Hacks Repelled . | . . . . Allies | -11 -10 -9 -8 -------- Run | Yrd Mat Mat Mat Total Allies . | . . . . Largest Group . | . . . . Highest-Rated Group . | . . . . Highest-Rated Ally . | . . . . Total Orders . | . . . . Ally Attacks . | . . . . Total Damage . | . . . . Kills . | . . . . Allies Corrupted . | . . . . Allies Melted . | . . . . Intel | -11 -10 -9 -8 ------- Run | Yrd Mat Mat Mat Active Infowar (turns) 253 | 9 231 13 . Seismic 253 | 9 231 13 . Robot Analysis Total . | . . . . Derelict Logs Recovered . | . . . . Drone Launches . | . . . . Drone Recoveries . | . . . . Exploration | -11 -10 -9 -8 ------------- Run | Yrd Mat Mat Mat Turns Passed 2541 | 110 544 370 1517 Spaces Moved 1256 | 74 334 257 591 Core 18 | 17 . . 1 Treads . | . . . . Legs 14 | . . . 14 Wheels 1205 | 57 334 257 557 Hover 19 | . . . 19 Flight . | . . . . Fastest Speed 46 | 50 80 90 46 Average Speed 89 | 80 88 90 91 Slowest Speed 260 | 90 90 90 260 Overloaded Moves . | . . . . Propulsion Burnouts . | . . . . Robots Hopped . | . . . . Potential Cave-ins . | . . . . Cave-ins Triggered . | . . . . Exploration Rate (%) 31 | 5 53 21 48 Regions Visited 3 Branch Regions . Pre-discovered Areas . | . . . . Known Exits Taken 2 | . 1 1 . Unknown Exits Taken 1 | 1 . . . Scrap Searched . | . . . . Spaces Dug 6 | . 6 . . Terrain Destroyed 236 | . 68 14 154 Melee . | . . . . Projectile . | . . . . AOE 236 | . 68 14 154 Terrain Rammed . | . . . . Walls Destroyed . | . . . . Machines Disabled . | . . . . Actions | -11 -10 -9 -8 --------- Run | Yrd Mat Mat Mat Total 2461 | 102 530 364 1465 Wait 955 | . 127 66 762 Move 1253 | 73 333 256 591 Hop . | . . . . Pick Up 44 | 9 12 12 11 Fast Attach 8 | . 1 . 7 Attach 22 | 8 5 5 4 Detach . | . . . . Swap 25 | . 9 6 10 Drop 27 | 1 5 3 18 Fire 82 | 11 36 16 19 Melee 45 | . 2 . 43 Ram . | . . . . Kick . | . . . . Crush . | . . . . Escape Stasis . | . . . . Rewire . | . . . . Trap . | . . . . Miscellaneous . | . . . . Route ------- -11/Scrapyard -10/Materials -9/Materials -8/Materials History --------- Turn | Location | Event 6 | -11/Scrapyard | Discovered new exit (range 16) 111 | -11/Scrapyard | Entered Materials 311 | -10/Materials | Build established: Mutant 514 | -10/Materials | Lost 4 parts (1p1n1u1w) 603 | -10/Materials | Discovered new exit (range 10) 612 | -10/Materials | Identified exit to Materials 655 | -10/Materials | Entered another Materials area 655 | -9/Materials | Evolved 2 slots: Utility x1, Weapon x1 838 | -9/Materials | Destroyed 7 combat bots 899 | -9/Materials | Repaired Arm. Wheel 1010 | -9/Materials | Discovered new exit (range 15) 1022 | -9/Materials | Identified exit to Materials 1025 | -9/Materials | Entered another Materials area 1025 | -8/Materials | Evolved 2 slots: Power x1, Utility x1 1122 | -8/Materials | Build established: Gunner 1841 | -8/Materials | Build established: Gladiator 2456 | -8/Materials | Core integrity fell below 50% 2532 | -8/Materials | Core integrity fell below 20% 2542 | -8/Materials | Destroyed by H-61 Shepherd with Heavy Assault Cannon Last Messages --------------- 02523_ Knocked back. 02525_ Penetrated by Slug. 02525_ Knocked back. 02526_ Acquired 5 matter. 02527_ Spear follow-up attack on H-61 Shepherd. 02528_ Spear blasted off. 02528_ Knocked back. 02528_ U-05 Engineer builds a Wall. 02531_ Penetrated by Slug. 02532_ Cld. Airjet destroyed. 02532_ Knocked back. 02534_ Penetrated by Slug. 02534_ Hardlight Generator destroyed. 02536_ U-05 Engineer builds a Wall. 02537_ Knocked back. 02537_ Penetrated by Slug. 02537_ Cld. Airjet destroyed. 02538_ Acquired 5 matter. 02540_ Slug penetrates Wall. 02542_ Sml. Storage Unit destroyed. Map ----- +----------------------------------------------------+ | ???????????????????????????????????????? | | ???????????????????????????????????????? | | ???????????????????????????????????????? | | ???????????????????????????????????????? | | ???????????????????????????????????????? | | ???????????????????????????????????????? | | ???????????????????????????????????????? | | ???????????????????????????????????????? | | ???????????????????????????????????????? | | ???????????????????????????????????????? | | ???????????????????????????????????????? | | ???????????????????????????????????????? | | ???????????????????????????????????????? | | ?????###???##??????????????????????????? | | ????? #??????????????????????????? | | #???? #??????????????????????????? | | #?????" """ #??????# ""????????????????? | | #?????" """ #??????# """???????????????? | | #?????? """ #??????# """?????????+?????? | | #?????? #??????? """???????? #?????? | | #??????? ! ????????? ??????? #?????? | | #??????? ! ???????????#+#????? ##????? | | #########+########+#### ##### #????? | | [ ! ! u ^^% h #????? | | =[ ! % #????? | | = % !@H #????? | | ######## ##### ####### ]#????? | | ???????# #??## = ##???????????????? | | ???????# #???#==]]!!#????????????????? | | ???????# #???# *]]!!#????????????????? | | ???????# #???########????????????????? | | ??????# #???????????????????????????? | | =??????# #???????????????????????????? | | ##?????# #???????????????????????????? | | ???????# #???????????????????????????? | | ???????# #???????????????????????????? | | ???????# #???????????????????????????? | | ???????# #???????????????????????????? | | ???????# #???????????????????????????? | | ???????# #???????????????????????????? | | ???????# #???????????????????????????? | | ???????# #???????????????????????????? | | ######## #???????????????????????????? | | [ #???????????????????????????? | | %%* #???????????????????????????? | | #???????????????????????????? | | ######## ########????????????????????? | | ######## # ]#????????????????????? | | #= # """ #????????????????????? | | "" ! # # """ #????????????????????? | +----------------------------------------------------+ Best States ------------- Heat Dissipation 31 Energy Generation 23 Energy Capacity 430 Matter Stores 300 Matter Capacity 300 Sight Range 16 Terrain Scan Density 10 Evasion (%) 55 Targeting Accuracy 6 Melee Accuracy 5 Recoil Reduction 4 Item Schematics ----------------- None Robot Schematics ------------------ None Fabricated ------------ Nothing Repaired ---------- Arm. Wheel | 33% | -9/Materials Studied --------- Arm. Wheel | -8/Materials | Hacked Alien Tech Used ----------------- None Achievements -------------- None Challenges ------------ None Game ------ Seed TargetDecoyFlail Manual? 0 Play Time 00:25:45 Cumulative 9.3 hours Start 2025.12.13 @ 20:16:36 End 2025.12.13 @ 20:38:24 Sessions 1 Manual Loads 0 Difficulty Rogue Special Mode None Game No. 37 Rogue 37 Adventurer 0 Explorer 0 Win Type - Total 0 Types 0/0/0/0/0/0/0/0/0/0 Lore% 7 Gallery% 18 Achievement% 13 Wizard Run 0 Options --------- Layout 1 ASCII 0 Keyboard 0 Movement Mouse Keybinds 0 Fullscreen 1 Font 24/Smallcaps Map View 50x35 Zoom Use 0% Tactical HUD 1 Map Filters NONE Filters NONE Steam 1 RUN: 5c4d3d02-146a-46c7-8354-303455809aa7